[Event "Int SVK-ch Open 2020"]
[Site "Drienica"]
[Date "2020.08.15"]
[Round "8.16"]
[White "Tomcik, Milan"]
[Black "Stevik, Patrik"]
[Result "1/2-1/2"]
[ECO "E90"]
[WhiteElo "1963"]
[BlackElo "2047"]
[Annotator "ChessBase"]
[PlyCount "89"]
[EventDate "2020.08.07"]
[EventType "swiss"]
[EventCountry "SVK"]
[TimeControl "40/5400+30:1800+30"]

1. d4 {[%emt 0:00:00]} Nf6 {[%emt 0:00:00]} 2. c4 {[%emt 0:00:07]} g6 {[%emt 0:00:00]} 3. Nc3 {[%emt 0:00:09]} Bg7 {[%emt 0:00:00]} 4. e4 {[%emt 0:00:07]} d6 {[%emt 0:00:01]} 5. Nf3 {[%emt 0:00:23]} O-O {[%emt 0:00:04]} 6. h3 {[%emt 0:00:12]} e5 {[%emt 0:00:08]} 7. d5 {[%emt 0:00:21]} Nh5 {[%emt 0:00:06]} 8. g3 {[%emt 0:00:19]} f5 {[%emt 0:00:33]} 9. Bd3 {[%emt 0:15:17]} Nf6 {[%emt 0:03:41]} 10. Bg5 {[%emt 0:08:39]} Na6 {[%emt 0:08:39]} 11. Nd2 {[%emt 0:01:23]} Nc5 {[%emt 0:08:30]} 12. Bc2 {[%emt 0:00:11]} a5 {[%emt 0:09:55]} 13. Qe2 {[%emt 0:00:38]} Bd7 {[%emt 0:01:46]} 14. h4 {[%emt 0:01:06]} h6 {[%emt 0:03:38]} 15. Bxf6 {[%emt 0:03:06]} Rxf6 {[%emt 0:07:36]} 16. O-O-O {[%emt 0:03:53]} f4 {[%emt 0:01:55]} 17. Rdg1 {[%emt 0:05:07]} fxg3 {[%emt 0:05:36]} 18. fxg3 {[%emt 0:09:06]} h5 {[%emt 0:03:48]} 19. Nd1 {[%emt 0:00:12]} Qe7 {[%emt 0:06:35]} 20. Rf1 {[%emt 0:10:52]} Raf8 {[%emt 0:00:52]} 21. Rxf6 {[%emt 0:00:26]} Rxf6 {[%emt 0:03:03]} 22. Rf1 {[%emt 0:11:12]} Bh6 {[%emt 0:04:21]} 23. Rxf6 {[%emt 0:03:06]} Qxf6 {[%emt 0:00:02]} 24. Qf2 {[%emt 0:00:18]} Kg7 {[%emt 0:02:26]} 25. Qxf6+ {[%emt 0:09:17]} Kxf6 {[%emt 0:00:04]} 26. Nf2 {[%emt 0:00:34]} Be3 {[%emt 0:03:40]} 27. Nd1 {[%emt 0:00:09]} Bh6 {[%emt 0:00:07]} 28. Nf2 {[%emt 0:00:04]} b5 {[%emt 0:01:49]} 29. b3 {[%emt 0:00:36]} bxc4 {[%emt 0:01:57]} 30. bxc4 {[%emt 0:00:14]} Bc8 {[%emt 0:00:51]} 31. Kd1 {[%emt 0:06:18]} Ba6 {[%emt 0:00:54]} 32. Nd3 {[%emt 0:01:32]} Bxd2 {[%emt 0:03:11]} 33. Nxc5 {[%emt 0:00:08]} dxc5 {[%emt 0:00:24]} 34. Kxd2 {[%emt 0:00:15]} Bxc4 {[%emt 0:00:06]} 35. a3 {[%emt 0:04:13]} Bb5 {[%emt 0:00:55]} 36. Kc3 {[%emt 0:01:47]} Ke7 {[%emt 0:00:48]} 37. Bd1 {[%emt 0:00:46]} Kd6 {[%emt 0:00:41]} 38. g4 {[%emt 0:00:21]} hxg4 {[%emt 0:06:44]} 39. Bxg4 {[%emt 0:00:07]} c6 {[%emt 0:00:42]} 40. dxc6 {[%emt 0:04:16]} Bxc6 {[%emt 0:00:21]} 41. Bf3 {[%emt 0:30:05]} Be8 {[%emt 0:37:52]} 42. Bd1 {[%emt 0:03:36]} Bf7 {[%emt 0:01:51]} 43. Bb3 {[%emt 0:00:00]} Bxb3 {[%emt 0:00:00]} 44. Kxb3 {[%emt 0:00:00]} Kc6 {[%emt 0:00:00]} 45. a4 {[%emt 0:00:00]} 1/2-1/2

[Event "Int SVK-ch Open 2020"]
[Site "Drienica"]
[Date "2020.08.15"]
[Round "8.17"]
[White "Ondo, Tomas"]
[Black "Sevcikova, Lucia"]
[Result "1/2-1/2"]
[ECO "D00"]
[WhiteElo "2065"]
[BlackElo "2017"]
[Annotator "ChessBase"]
[PlyCount "45"]
[EventDate "2020.08.07"]
[EventType "swiss"]
[EventCountry "SVK"]
[TimeControl "40/5400+30:1800+30"]

1. d4 {[%emt 0:00:00]} d5 {[%emt 0:00:00]} 2. Bf4 {[%emt 0:00:00]} e6 {[%emt 0:00:00]} 3. e3 {[%emt 0:00:00]} f5 {[%emt 0:00:00]} 4. g4 {[%emt 0:00:54]} Nf6 {[%emt 0:04:20]} 5. gxf5 {[%emt 0:02:28]} exf5 {[%emt 0:00:09]} 6. Nf3 {[%emt 0:01:16]} Nc6 {[%emt 0:05:15]} 7. Rg1 {[%emt 0:03:42]} g6 {[%emt 0:05:45]} 8. Nbd2 {[%emt 0:01:51]} Ne4 {[%emt 0:05:16]} 9. Ne5 {[%emt 0:09:52]} Nxe5 {[%emt 0:05:19]} 10. Bxe5 {[%emt 0:00:42]} Rg8 {[%emt 0:00:02]} 11. Qf3 {[%emt 0:07:10]} Bd6 {[%emt 0:07:41]} 12. Qh3 {[%emt 0:12:12]} Qe7 {[%emt 0:03:23]} 13. Nxe4 {[%emt 0:29:28]} fxe4 {[%emt 0:01:37]} 14. Bxd6 {[%emt 0:00:19]} Bxh3 {[%emt 0:01:20]} 15. Bxe7 {[%emt 0:00:07]} Bxf1 {[%emt 0:00:03]} 16. Kxf1 {[%emt 0:02:53]} Kxe7 {[%emt 0:00:05]} 17. Rg5 {[%emt 0:01:00]} Kd6 {[%emt 0:01:38]} 18. c4 {[%emt 0:02:15]} c6 {[%emt 0:00:41]} 19. Rc1 {[%emt 0:01:20]} Rac8 {[%emt 0:00:43]} 20. b4 {[%emt 0:04:09]} b6 {[%emt 0:12:05]} 21. Kg2 {[%emt 0:04:51]} Rgf8 {[%emt 0:02:02]} 22. Rg3 {[%emt 0:03:26]} Rf5 {[%emt 0:04:35]} 23. f4 {[%emt 0:06:29]} 1/2-1/2

[Event "Int SVK-ch Open 2020"]
[Site "Drienica"]
[Date "2020.08.14"]
[Round "8.17"]
[White "Malinovsky, Jozef"]
[Black "Kubikova, Nina"]
[Result "0-1"]
[ECO "A20"]
[WhiteElo "1698"]
[BlackElo "1256"]
[Annotator "NA"]
[PlyCount "46"]
[EventDate "2020.08.07"]
[EventType "swiss"]
[EventCountry "SVK"]
[SourceTitle "playchess.com"]
[Source "ChessBase"]
[SourceQuality "1"]
[TimeControl "40/5400+30:1800+30"]

1. c4 {[%emt 0:00:00]} e5 {[%emt 0:00:00]} 2. d3 {[%emt 0:00:07]} Nc6 {[%emt 0:00:00]} 3. Nc3 {[%emt 0:00:24]} Nf6 {[%emt 0:00:16]} 4. g3 {[%emt 0:00:39]} Bb4 {[%emt 0:00:23]} 5. Bg2 {[%emt 0:00:30]} O-O {[%emt 0:00:28]} 6. Bd2 {[%emt 0:01:29]} Re8 {[%emt 0:01:04]} 7. e4 {[%emt 0:00:53]} d6 {[%emt 0:02:08]} 8. Nge2 {[%emt 0:02:29]} Be6 {[%emt 0:11:18]} 9. a3 {[%emt 0:02:29]} Bc5 {[%emt 0:00:32]} 10. Nd5 {[%emt 0:00:39]} Nd4 {[%emt 0:03:05]} 11. Nxd4 {[%emt 0:04:56]} Bxd4 {[%emt 0:00:10]} 12. Rb1 {[%emt 0:00:44]} c6 {[%emt 0:02:02]} 13. Nxf6+ {[%emt 0:01:32]} Qxf6 {[%emt 0:00:18]} 14. Qf3 {[%emt 0:00:46]} Qxf3 {[%emt 0:02:56]} 15. Bxf3 {[%emt 0:00:09]} Rad8 {[%emt 0:00:12]} 16. b4 {[%emt 0:00:45]} d5 {[%emt 0:06:57]} 17. Be2 {[%emt 0:03:17]} dxe4 {[%emt 0:00:29]} 18. dxe4 {[%emt 0:00:14]} Bxf2+ {[%emt 0:00:13]} 19. Kxf2 {[%emt 0:00:22]} Rxd2 {[%emt 0:00:07]} 20. Rhd1 {[%emt 0:01:55]} Red8 {[%emt 0:00:37]} 21. Rxd2 {[%emt 0:00:54]} Rxd2 {[%emt 0:00:09]} 22. Ke3 {[%emt 0:00:15]} Ra2 {[%emt 0:03:52]} 23. Rb3 {[%emt 0:00:17]} Rxe2+ {[%emt 0:00:15]} 0-1

[Event "Int SVK-ch Open 2020"]
[Site "Drienica"]
[Date "2020.08.15"]
[Round "8.18"]
[White "Konyves, Almos"]
[Black "Hudak, Vasil"]
[Result "1-0"]
[ECO "E91"]
[WhiteElo "2090"]
[BlackElo "1997"]
[Annotator "ChessBase"]
[PlyCount "99"]
[EventDate "2020.08.07"]
[EventType "swiss"]
[EventCountry "SVK"]
[TimeControl "40/5400+30:1800+30"]

1. d4 {[%emt 0:00:00]} Nf6 {[%emt 0:00:00]} 2. c4 {[%emt 0:00:00]} c5 {[%emt 0:00:00]} 3. d5 {[%emt 0:00:00]} g6 {[%emt 0:00:00]} 4. Nc3 {[%emt 0:00:12]} Bg7 {[%emt 0:00:06]} 5. e4 {[%emt 0:00:22]} d6 {[%emt 0:05:25]} 6. Be2 {[%emt 0:00:26]} O-O {[%emt 0:00:16]} 7. h3 {[%emt 0:00:49]} e6 {[%emt 0:00:18]} 8. Nf3 {[%emt 0:00:40]} exd5 {[%emt 0:00:24]} 9. exd5 {[%emt 0:00:51]} a6 {[%emt 0:01:22]} 10. O-O {[%emt 0:01:12]} Re8 {[%emt 0:03:39]} 11. Bd3 {[%emt 0:01:08]} b5 {[%emt 0:02:34]} 12. cxb5 {[%emt 0:02:59]} Bb7 {[%emt 0:01:06]} 13. a4 {[%emt 0:04:05]} Nxd5 {[%emt 0:13:02]} 14. Nxd5 {[%emt 0:00:48]} Bxd5 {[%emt 0:00:14]} 15. Bxg6 {[%emt 0:01:23]} Bc4 {[%emt 0:04:19]} 16. Bxh7+ {[%emt 0:01:38]} Kf8 {[%emt 0:00:13]} 17. Bd3 {[%emt 0:00:19]} axb5 {[%emt 0:00:29]} 18. Bxc4 {[%emt 0:04:14]} bxc4 {[%emt 0:02:42]} 19. Qd5 {[%emt 0:00:29]} Na6 {[%emt 0:02:13]} 20. Ng5 {[%emt 0:09:21]} Qd7 {[%emt 0:02:11]} 21. Bf4 {[%emt 0:04:03]} Rad8 {[%emt 0:04:22]} 22. Qxc4 {[%emt 0:11:10]} Qf5 {[%emt 0:00:18]} 23. Ra3 {[%emt 0:10:38]} d5 {[%emt 0:03:55]} 24. Qxa6 {[%emt 0:01:18]} Qxf4 {[%emt 0:00:16]} 25. Rg3 {[%emt 0:01:54]} Rd6 {[%emt 0:00:38]} 26. Qa7 {[%emt 0:01:41]} Rc6 {[%emt 0:06:23]} 27. Nh7+ {[%emt 0:04:27]} Kg8 {[%emt 0:00:31]} 28. Ng5 {[%emt 0:00:30]} Kf8 {[%emt 0:00:30]} 29. Rf3 {[%emt 0:00:30]} Rc7 {[%emt 0:02:07]} 30. Nh7+ {[%emt 0:02:43]} Kg8 {[%emt 0:00:37]} 31. Qb6 {[%emt 0:00:09]} Qe5 {[%emt 0:04:34]} 32. Re3 {[%emt 0:07:56]} Kxh7 {[%emt 0:01:07]} 33. Rxe5 {[%emt 0:01:31]} Bxe5 {[%emt 0:01:07]} 34. f4 {[%emt 0:02:48]} Bd4+ {[%emt 0:00:32]} 35. Kh1 {[%emt 0:00:10]} Rec8 {[%emt 0:05:21]} 36. Qb5 {[%emt 0:02:05]} Ra8 {[%emt 0:02:21]} 37. Qd3+ {[%emt 0:01:38]} Kg8 {[%emt 0:00:39]} 38. Qg3+ {[%emt 0:00:31]} Kf8 {[%emt 0:00:35]} 39. f5 {[%emt 0:00:08]} Rc6 {[%emt 0:00:10]} 40. Qh4 {[%emt 0:01:56]} Bf6 {[%emt 0:01:18]} 41. Qh6+ {[%emt 0:32:10]} Ke7 {[%emt 0:31:17]} 42. Re1+ {[%emt 0:03:13]} Kd7 {[%emt 0:02:02]} 43. Qh5 {[%emt 0:00:09]} Rf8 {[%emt 0:00:34]} 44. g4 {[%emt 0:03:30]} Kc8 {[%emt 0:04:44]} 45. g5 {[%emt 0:02:20]} Bxb2 {[%emt 0:04:06]} 46. f6 {[%emt 0:03:30]} Rc7 {[%emt 0:02:30]} 47. Qe2 {[%emt 0:01:37]} Ba3 {[%emt 0:03:09]} 48. Qa6+ {[%emt 0:00:32]} Kb8 {[%emt 0:01:14]} 49. Qb6+ {[%emt 0:01:21]} Kc8 {[%emt 0:00:32]} 50. Re7 {[%emt 0:00:34]} 1-0

[Event "Int SVK-ch Open 2020"]
[Site "Drienica"]
[Date "2020.08.14"]
[Round "8.18"]
[White "Kucik, Patrik"]
[Black "Furman, Maximilian Jan"]
[Result "1/2-1/2"]
[ECO "C44"]
[WhiteElo "1572"]
[BlackElo "1598"]
[Annotator "NA"]
[PlyCount "87"]
[EventDate "2020.08.07"]
[EventType "swiss"]
[EventCountry "SVK"]
[SourceTitle "playchess.com"]
[Source "ChessBase"]
[SourceQuality "1"]
[TimeControl "40/5400+30:1800+30"]

1. e4 {[%emt 0:00:00]} e5 {[%emt 0:00:00]} 2. Nf3 {[%emt 0:00:05]} Nc6 {[%emt 0:00:00]} 3. d4 {[%emt 0:00:40]} exd4 {[%emt 0:00:00]} 4. Bc4 {[%emt 0:00:43]} Bb4+ {[%emt 0:06:06]} 5. c3 {[%emt 0:02:40]} dxc3 {[%emt 0:05:50]} 6. bxc3 {[%emt 0:03:29]} Bc5 {[%emt 0:03:36]} 7. Bxf7+ {[%emt 0:03:47]} Kxf7 {[%emt 0:04:29]} 8. Qd5+ {[%emt 0:03:55]} Kf8 {[%emt 0:00:39]} 9. Qxc5+ {[%emt 0:00:36]} d6 {[%emt 0:00:23]} 10. Qe3 {[%emt 0:02:50]} Qf6 {[%emt 0:10:27]} 11. O-O {[%emt 0:04:24]} Bg4 {[%emt 0:05:52]} 12. Nd4 {[%emt 0:01:38]} Nxd4 {[%emt 0:12:18]} 13. cxd4 {[%emt 0:01:59]} Ne7 {[%emt 0:05:00]} 14. Bb2 {[%emt 0:05:27]} h5 {[%emt 0:05:30]} 15. h3 {[%emt 0:02:25]} Bd7 {[%emt 0:00:42]} 16. e5 {[%emt 0:05:00]} dxe5 {[%emt 0:03:57]} 17. dxe5 {[%emt 0:01:39]} Qf5 {[%emt 0:03:21]} 18. Qd4 {[%emt 0:06:16]} Be6 19. Ba3 {[%emt 0:02:52]} Kf7 {[%emt 0:05:50]} 20. Bxe7 {[%emt 0:02:48]} Kxe7 {[%emt 0:00:17]} 21. Qc5+ {[%emt 0:00:33]} Kd7 {[%emt 0:01:47]} 22. Rd1+ {[%emt 0:03:57]} Kc8 {[%emt 0:00:06]} 23. Nc3 {[%emt 0:01:17]} Qf8 {[%emt 0:05:51]} 24. Qe3 {[%emt 0:07:01]} Rh6 {[%emt 0:01:45]} 25. Rd4 {[%emt 0:04:04]} Qf5 {[%emt 0:05:19]} 26. Rad1 {[%emt 0:02:00]} Rh8 {[%emt 0:00:50]} 27. Qd2 {[%emt 0:09:24]} Qf8 {[%emt 0:01:07]} 28. Qg5 {[%emt 0:00:43]} b6 {[%emt 0:02:58]} 29. Rd8+ {[%emt 0:04:51]} Qxd8 {[%emt 0:00:05]} 30. Rxd8+ {[%emt 0:00:16]} Rxd8 {[%emt 0:00:03]} 31. Qxg7 {[%emt 0:00:40]} Kb7 {[%emt 0:00:35]} 32. Qf6 {[%emt 0:01:57]} Bd5 {[%emt 0:01:31]} 33. Nxd5 {[%emt 0:01:44]} Rxd5 {[%emt 0:00:09]} 34. e6 {[%emt 0:00:25]} Re8 {[%emt 0:01:40]} 35. Qf7 {[%emt 0:01:23]} Rdd8 {[%emt 0:00:48]} 36. e7 {[%emt 0:01:04]} Rc8 {[%emt 0:00:14]} 37. f4 {[%emt 0:00:41]} c5 {[%emt 0:00:22]} 38. Qd5+ {[%emt 0:03:40]} Kb8 {[%emt 0:00:23]} 39. Qd6+ {[%emt 0:01:39]} Kb7 {[%emt 0:00:51]} 40. Qd7+ {[%emt 0:00:59]} Kb8 {[%emt 0:00:07]} 41. Qd6+ {[%emt 0:30:36]} Kb7 {[%emt 0:30:07]} 42. f5 {[%emt 0:01:29]} c4 {[%emt 0:00:12]} 43. f6 {[%emt 0:00:00]} c3 {[%emt 0:00:00]} 44. Qd7+ {[%emt 0:00:00]} 1/2-1/2

[Event "Int SVK-ch Open 2020"]
[Site "Drienica"]
[Date "2020.08.14"]
[Round "8.19"]
[White "Zahradnik, Vladimir"]
[Black "Kulich, Daniel"]
[Result "0-1"]
[ECO "B10"]
[WhiteElo "1874"]
[BlackElo "1492"]
[Annotator "NA"]
[PlyCount "82"]
[EventDate "2020.08.07"]
[EventType "swiss"]
[EventCountry "SVK"]
[SourceTitle "playchess.com"]
[Source "ChessBase"]
[SourceQuality "1"]
[TimeControl "40/5400+30:1800+30"]

1. e4 {[%emt 0:00:00]} c6 {[%emt 0:00:00]} 2. Nc3 {[%emt 0:00:00]} d5 {[%emt 0:00:00]} 3. Nf3 {[%emt 0:01:01]} dxe4 {[%emt 0:00:01]} 4. Nxe4 {[%emt 0:00:06]} Nf6 {[%emt 0:00:11]} 5. Nxf6+ {[%emt 0:00:45]} exf6 {[%emt 0:00:44]} 6. Bc4 {[%emt 0:01:51]} Bd6 {[%emt 0:00:33]} 7. O-O {[%emt 0:00:12]} O-O {[%emt 0:00:09]} 8. d4 {[%emt 0:00:39]} Re8 {[%emt 0:01:05] is recently more successful than 8...Bg4. B15: Caro-Kann: 3 Nc3: 3...g6 and 3...dxe4 4 Nxe4 Nf6 5 Nxf6+ exf6.} 9. h3 {[%emt 0:00:59]} Nd7 {[%emt 0:01:51] [#]} 10. Be3 $146 {[%emt 0:00:50]} ({Predecessor:} 10. Bb3 Nf8 11. c4 Ng6 12. c5 Bf8 13. Re1 Bf5 14. Be3 Be4 15. Nd2 Bd5 16. Bc2 {0-1 (57) Recuero Guerra,D (2455)-Narciso Dublan,M (2551) Gijon 2011}) 10... Nb6 {[%emt 0:03:19]} 11. Bd3 {[%emt 0:00:22]} Nd5 {[%emt 0:01:26]} 12. Bd2 {[%emt 0:01:05]} Nf4 {[%emt 0:05:39]} 13. Bxf4 {[%emt 0:00:13]} Bxf4 {[%emt 0:00:08]} 14. c4 {[%emt 0:00:17]} Be6 {[%emt 0:06:50]} 15. Qc2 {[%emt 0:00:21]} g6 {[%emt 0:00:43]} 16. Rfe1 {[%emt 0:03:55]} Qd7 {[%emt 0:01:24]} 17. Bf1 {[%emt 0:00:58]} Bf5 {[%emt 0:01:37]} 18. Qc3 {[%emt 0:00:50]} Kg7 {[%emt 0:06:07]} 19. Rxe8 {[%emt 0:01:08]} Rxe8 {[%emt 0:01:32]} 20. Rd1 {[%emt 0:00:34]} Be4 {[%emt 0:07:13]} 21. g3 {[%emt 0:05:51]} Bc7 {[%emt 0:03:58]} 22. d5 {[%emt 0:16:49]} cxd5 {[%emt 0:04:14]} 23. cxd5 {[%emt 0:00:08] [#]} Rd8 {[%emt 0:00:55]} ({Worse is} 23... Bxd5 24. Bc4 $16) ({Black should play} 23... Bb6 $1 $19 24. Ng5 Bf5) 24. Qe3 {[%emt 0:02:51]} (24. Rd4 $15 Bf5 25. g4) 24... Bxd5 {[%emt 0:02:59]} 25. Bc4 {[%emt 0:07:59]} Qc6 {[%emt 0:00:29]} 26. Bxd5 {[%emt 0:00:16]} Rxd5 {[%emt 0:00:12]} 27. Rxd5 {[%emt 0:00:34]} Qxd5 {[%emt 0:00:06]} 28. b3 {[%emt 0:00:42]} Bb6 {[%emt 0:01:08]} 29. Qe2 {[%emt 0:00:11]} Qe6 {[%emt 0:01:51]} 30. Qf1 {[%emt 0:01:05]} Qf5 {[%emt 0:02:17]} 31. Ne1 {[%emt 0:06:26]} Qe5 {[%emt 0:01:55]} 32. Kg2 {[%emt 0:01:06]} Qb2 {[%emt 0:00:36]} 33. Nd3 {[%emt 0:00:51]} Qxa2 {[%emt 0:00:39]} 34. Qd1 {[%emt 0:00:10]} Qa5 {[%emt 0:02:57]} 35. Qc2 {[%emt 0:00:19]} Qd5+ {[%emt 0:01:20]} 36. f3 {[%emt 0:01:15]} Qd4 {[%emt 0:00:54]} 37. Qd1 $11 {[%emt 0:00:09]} Bc5 {[%emt 0:04:46]} (37... h5 38. h4) 38. Qf1 {[%emt 0:02:18]} Bb6 {[%emt 0:05:54]} 39. h4 $2 {[%emt 0:01:24]} Qc3 {[%emt 0:01:33]} 40. Qd1 {[%emt 0:00:00]} Be3 {[%emt 0:00:00]} 41. g4 $19 {[%emt 0:07:41]} a5 {[%emt 0:03:48]} 0-1

[Event "Int SVK-ch Open 2020"]
[Site "Drienica"]
[Date "2020.08.14"]
[Round "8.21"]
[White "Gulas, Gabriel"]
[Black "Cisarik, Pavol"]
[Result "1/2-1/2"]
[ECO "C45"]
[WhiteElo "1472"]
[BlackElo "1635"]
[Annotator "NA"]
[PlyCount "85"]
[EventDate "2020.08.07"]
[EventType "swiss"]
[EventCountry "SVK"]
[SourceTitle "playchess.com"]
[Source "ChessBase"]
[SourceQuality "1"]
[TimeControl "40/5400+30:1800+30"]

1. e4 {[%emt 0:00:00]} e5 {[%emt 0:00:00]} 2. Nf3 {[%emt 0:00:00]} Nc6 {[%emt 0:00:00]} 3. d4 {[%emt 0:00:00]} exd4 {[%emt 0:00:00]} 4. Nxd4 {[%emt 0:00:00]} Nf6 {[%emt 0:00:13]} 5. Nxc6 {[%emt 0:00:12]} bxc6 {[%emt 0:00:08]} 6. e5 {[%emt 0:00:39]} Qe7 {[%emt 0:00:11]} 7. Qe2 {[%emt 0:00:49]} Nd5 {[%emt 0:00:10]} 8. c4 {[%emt 0:09:33]} Ba6 {[%emt 0:00:14]} 9. Bd2 {[%emt 0:04:26]} g6 {[%emt 0:00:47]} 10. Nc3 {[%emt 0:01:31]} Bg7 {[%emt 0:01:10]} 11. f4 {[%emt 0:00:42]} O-O {[%emt 0:03:48]} 12. Qe4 {[%emt 0:02:41]} Nb6 {[%emt 0:00:52]} 13. Be2 {[%emt 0:01:01]} Rae8 {[%emt 0:01:43]} 14. c5 {[%emt 0:03:20]} Bxe2 {[%emt 0:01:57]} 15. cxb6 {[%emt 0:00:22]} Ba6 {[%emt 0:01:52]} 16. Qa4 {[%emt 0:04:40]} Bxe5 {[%emt 0:00:34]} 17. O-O-O {[%emt 0:04:39]} Bxc3 {[%emt 0:01:01]} 18. Bxc3 {[%emt 0:00:49]} Qe3+ {[%emt 0:00:17]} 19. Kb1 {[%emt 0:01:14]} Qxb6 {[%emt 0:00:59]} 20. Rxd7 {[%emt 0:01:55]} Re2 {[%emt 0:01:33]} 21. g3 {[%emt 0:02:16]} Rb8 {[%emt 0:07:46]} 22. Qd4 {[%emt 0:01:06]} Qxd4 {[%emt 0:00:31]} 23. Bxd4 {[%emt 0:00:24]} Bd3+ {[%emt 0:00:15]} 24. Ka1 {[%emt 0:00:32]} Be4 {[%emt 0:00:20]} 25. Rd1 {[%emt 0:01:19]} Bd5 {[%emt 0:00:34]} 26. Rxc7 {[%emt 0:00:43]} Rxh2 {[%emt 0:00:40]} 27. Rxa7 {[%emt 0:01:03]} Bf3 {[%emt 0:00:37]} 28. Rg1 {[%emt 0:09:55]} Rg2 {[%emt 0:03:21]} 29. Rxg2 {[%emt 0:04:58]} Bxg2 {[%emt 0:00:05]} 30. a4 {[%emt 0:00:36]} Bd5 {[%emt 0:03:43]} 31. b4 {[%emt 0:01:41]} Re8 {[%emt 0:00:38]} 32. Kb2 {[%emt 0:03:38]} f5 {[%emt 0:00:47]} 33. Rg7+ {[%emt 0:00:51]} Kf8 {[%emt 0:00:10]} 34. Rxh7 {[%emt 0:00:24]} Re2+ {[%emt 0:00:23]} 35. Kc3 {[%emt 0:00:37]} Rg2 36. Bc5+ {[%emt 0:22:23]} Kg8 {[%emt 0:01:44]} 37. Re7 {[%emt 0:00:20]} Rxg3+ {[%emt 0:00:18]} 38. Kd4 {[%emt 0:01:34]} g5 {[%emt 0:05:12]} 39. fxg5 {[%emt 0:02:44]} Rxg5 {[%emt 0:00:02]} 40. Ke5 {[%emt 0:00:00]} Be4 {[%emt 0:00:00]} 41. Be3 {[%emt 0:01:15]} Rg3 {[%emt 0:05:29]} 42. Bf4 {[%emt 0:01:40]} Rb3 {[%emt 0:02:52]} 43. Re8+ {[%emt 0:02:06]} 1/2-1/2

[Event "Int SVK-ch Open 2020"]
[Site "Drienica"]
[Date "2020.08.15"]
[Round "8.22"]
[White "Bujna, Martin"]
[Black "Brnusak, Tomas"]
[Result "0-1"]
[ECO "A03"]
[WhiteElo "1841"]
[BlackElo "2044"]
[Annotator "ChessBase"]
[PlyCount "70"]
[EventDate "2020.08.07"]
[EventType "swiss"]
[EventCountry "SVK"]
[TimeControl "40/5400+30:1800+30"]

1. f4 {[%emt 0:00:18]} Nf6 {[%emt 0:00:19]} 2. Nf3 {[%emt 0:00:13]} d5 {[%emt 0:00:22]} 3. e3 {[%emt 0:00:20]} Bf5 {[%emt 0:02:00]} 4. b3 {[%emt 0:00:51]} e6 {[%emt 0:01:06]} 5. Bb2 {[%emt 0:00:49]} Bd6 {[%emt 0:01:19]} 6. Nc3 {[%emt 0:01:02]} c6 {[%emt 0:00:17]} 7. Ne2 {[%emt 0:00:40]} h6 {[%emt 0:00:30]} 8. Ng3 {[%emt 0:00:18]} Bh7 {[%emt 0:00:34]} 9. Ne5 {[%emt 0:02:15]} Nbd7 {[%emt 0:02:37]} 10. Bd3 {[%emt 0:00:27]} Bxd3 {[%emt 0:00:37]} 11. cxd3 {[%emt 0:00:43]} Nc5 {[%emt 0:07:22]} 12. Qc2 {[%emt 0:01:11]} O-O {[%emt 0:02:26]} 13. O-O {[%emt 0:00:16]} a5 {[%emt 0:02:58]} 14. Ba3 {[%emt 0:04:28]} Na6 {[%emt 0:01:34]} 15. Bxd6 {[%emt 0:00:32]} Qxd6 {[%emt 0:00:07]} 16. a3 {[%emt 0:00:39]} c5 {[%emt 0:02:05]} 17. Qb2 {[%emt 0:00:55]} Rfc8 {[%emt 0:03:03]} 18. f5 {[%emt 0:02:22]} b5 {[%emt 0:07:07]} 19. fxe6 {[%emt 0:01:37]} fxe6 {[%emt 0:04:10]} 20. Ng6 {[%emt 0:01:05]} Kh7 {[%emt 0:03:17]} 21. Nf4 {[%emt 0:06:25]} c4 {[%emt 0:02:14]} 22. Nfh5 {[%emt 0:02:28]} Nxh5 {[%emt 0:01:46]} 23. Nxh5 {[%emt 0:00:25]} Ra7 {[%emt 0:02:21]} 24. dxc4 {[%emt 0:00:26]} dxc4 {[%emt 0:00:12]} 25. Qc2+ {[%emt 0:00:27]} Qd3 {[%emt 0:00:17]} 26. Rac1 {[%emt 0:02:02]} Rd7 {[%emt 0:03:36]} 27. Nf4 {[%emt 0:00:23]} Qxc2 {[%emt 0:00:34]} 28. Rxc2 {[%emt 0:00:09]} e5 {[%emt 0:00:29]} 29. Ne2 {[%emt 0:01:30]} Nc5 {[%emt 0:04:22]} 30. bxc4 {[%emt 0:00:47]} Nb3 {[%emt 0:00:15]} 31. Rf5 {[%emt 0:01:58]} Rxc4 {[%emt 0:03:59]} 32. Rxc4 {[%emt 0:02:40]} bxc4 {[%emt 0:00:07]} 33. Rxe5 {[%emt 0:01:09]} Rxd2 {[%emt 0:00:10]} 34. Nd4 {[%emt 0:00:12]} Nxd4 {[%emt 0:00:40]} 35. exd4 {[%emt 0:00:19]} c3 {[%emt 0:00:06]} 0-1

[Event "Int SVK-ch Open 2020"]
[Site "Drienica"]
[Date "2020.08.14"]
[Round "8.22"]
[White "Horbalova, Ivana"]
[Black "Ihnat, Marek"]
[Result "0-1"]
[ECO "C06"]
[WhiteElo "1306"]
[BlackElo "2065"]
[Annotator "ChessBase"]
[PlyCount "88"]
[EventDate "2020.08.07"]
[EventType "swiss"]
[EventCountry "SVK"]
[SourceTitle "playchess.com"]
[Source "ChessBase"]
[SourceQuality "1"]
[TimeControl "40/5400+30:1800+30"]

1. e4 e6 2. d4 d5 3. Nd2 Nf6 4. e5 Nfd7 5. Bd3 c5 6. c3 Nc6 7. Ne2 cxd4 8. cxd4 f6 9. exf6 Nxf6 10. Nf3 Bd6 11. Bf4 O-O 12. Ne5 Nxe5 13. dxe5 Bb4+ 14. Kf1 Nd7 15. Rc1 Qb6 16. Bb1 Nxe5 17. Qc2 g6 18. Qc7 Qxc7 19. Rxc7 Nc6 20. Bh6 Rf7 21. Rxf7 Kxf7 22. h4 b6 23. h5 Ne7 24. hxg6+ hxg6 25. Bg5 Kg7 26. g4 Ba6 27. Rh4 Rc8 28. Bh6+ Kf6 29. g5+ Kf7 30. Rxb4 Rc1+ 31. Kg2 Rxb1 32. Rf4+ Nf5 33. Ng3 Rxb2 34. Nxf5 gxf5 35. Ra4 Bc4 36. Rxa7+ Kg6 37. Re7 Re2 38. Kg3 Kh5 39. Rf7 Rxa2 40. Rf8 b5 41. Kf4 Re2 42. Rh8 Re4+ 43. Kf3 d4 44. Rg8 d3 0-1

[Event "Int SVK-ch Open 2020"]
[Site "Drienica"]
[Date "2020.08.14"]
[Round "8.23"]
[White "Marsina, Stefan"]
[Black "Andras, Anton"]
[Result "1-0"]
[ECO "D00"]
[WhiteElo "1854"]
[BlackElo "1582"]
[Annotator "NA"]
[PlyCount "53"]
[EventDate "2020.08.07"]
[EventType "swiss"]
[EventCountry "SVK"]
[SourceTitle "playchess.com"]
[Source "ChessBase"]
[SourceQuality "1"]
[TimeControl "40/5400+30:1800+30"]

1. d4 d5 2. Bf4 e6 3. Nf3 Nf6 4. e3 Bd6 5. Bg3 O-O 6. Bd3 c5 7. dxc5 {D02: 1 d4 d5 2 Nf3 sidelines, including 2...Nf6 3 g3 and 2...Nf6 3 Bf4.} Bxc5 8. O-O Nc6 9. Nbd2 Bd6 {[#]} 10. Bh4 $146 ({Predecessor:} 10. c4 Bxg3 11. hxg3 d4 12. exd4 Nxd4 13. Ne4 Nxf3+ 14. Qxf3 Nxe4 15. Bxe4 Qc7 16. Qb3 {1-0 (38) Mahalakshmi,M (2238)-Ghosh,S (2034) New Delhi 2018}) 10... Ne5 11. Nxe5 Bxe5 12. c3 Bd6 13. Qe2 Be7 14. Rad1 Qc7 15. Rfe1 b6 16. Bg3 Bd6 (16... Qc6 $1 $11 {remains equal.}) 17. Bxd6 Qxd6 18. e4 Qe5 19. Nf3 Qh5 20. e5 Nd7 21. Bb1 Bb7 {[#]} 22. Rd4 $1 f5 $18 23. exf6 Nxf6 24. Rh4 Qe8 25. Ng5 h6 26. Nxe6 Rf7 27. Bg6 1-0